[Event "Early-Titled-Tuesday-Blitz-February-06-2024"]
[Site "Chess.com"]
[Date "2024.02.06"]
[Round "2"]
[White "Manukyan_Artak"]
[Black "the_blue_pill"]
[Result "0-1"]
[WhiteElo "2488"]
[BlackElo "2313"]
[TimeControl "180+1"]
[EndTime "8:18:40 PST"]
[Termination "the_blue_pill won by resignation"]

1. e4 {[%clk 0:02:53.4]} 1... c5 {[%clk 0:02:59.3]} 2. Nf3 {[%clk 0:02:46.9]}
2... d6 {[%clk 0:02:56.4]} 3. Bb5+ {[%clk 0:02:44.9]} 3... Bd7 {[%clk
0:02:49.6]} 4. Bxd7+ {[%clk 0:02:43]} 4... Qxd7 {[%clk 0:02:50.5]} 5. c4 {[%clk
0:02:42.1]} 5... Nc6 {[%clk 0:02:49.9]} 6. Nc3 {[%clk 0:02:41]} 6... Nf6 {[%clk
0:02:49.2]} 7. O-O {[%clk 0:02:36.8]} 7... g6 {[%clk 0:02:47.9]} 8. d4 {[%clk
0:02:34.7]} 8... cxd4 {[%clk 0:02:47.5]} 9. Nxd4 {[%clk 0:02:35.6]} 9... Bg7
{[%clk 0:02:47.7]} 10. Be3 {[%clk 0:02:28.1]} 10... Ng4 {[%clk 0:02:46.6]} 11.
Nxc6 {[%clk 0:02:18.3]} 11... Nxe3 {[%clk 0:02:45]} 12. fxe3 {[%clk 0:02:16.4]}
12... bxc6 {[%clk 0:02:41.7]} 13. Qd3 {[%clk 0:02:04.1]} 13... O-O {[%clk
0:02:35.5]} 14. Rad1 {[%clk 0:01:52]} 14... Qe6 {[%clk 0:02:35.6]} 15. b3 {[%clk
0:01:47.7]} 15... Bxc3 {[%clk 0:02:33.4]} 16. Qxc3 {[%clk 0:01:46.3]} 16... Qxe4
{[%clk 0:02:34]} 17. c5 {[%clk 0:01:47]} 17... d5 {[%clk 0:02:32.5]} 18. Rd4
{[%clk 0:01:42.1]} 18... Qe5 {[%clk 0:02:23.1]} 19. e4 {[%clk 0:01:29.1]} 19...
dxe4 {[%clk 0:02:20]} 20. Qc4 {[%clk 0:01:27.3]} 20... e6 {[%clk 0:02:11.6]} 21.
Rxe4 {[%clk 0:01:22.2]} 21... Qd5 {[%clk 0:02:11.8]} 22. Rd4 {[%clk 0:01:14.2]}
22... Qxc4 {[%clk 0:02:07]} 23. bxc4 {[%clk 0:01:14.3]} 23... Rfd8 {[%clk
0:02:06.5]} 24. Rd6 {[%clk 0:01:09.6]} 24... Rxd6 {[%clk 0:02:03.5]} 25. cxd6
{[%clk 0:01:08.9]} 25... c5 {[%clk 0:02:03.9]} 26. Kf2 {[%clk 0:00:59.3]} 26...
Rd8 {[%clk 0:02:02.9]} 27. Rd1 {[%clk 0:00:58.4]} 27... Kf8 {[%clk 0:02:03.1]}
28. Ke3 {[%clk 0:00:53.3]} 28... Ke8 {[%clk 0:02:00.1]} 29. Rd3 {[%clk
0:00:43.4]} 29... f6 {[%clk 0:01:52.2]} 30. Ke4 {[%clk 0:00:38.5]} 30... a6
{[%clk 0:01:42]} 31. h4 {[%clk 0:00:30.5]} 31... h5 {[%clk 0:01:40.2]} 32. g3
{[%clk 0:00:25.1]} 32... Rd7 {[%clk 0:01:37.8]} 33. a4 {[%clk 0:00:20.1]} 33...
Rb7 {[%clk 0:01:36.1]} 34. Rf3 {[%clk 0:00:16.2]} 34... Kf7 {[%clk 0:01:22.1]}
35. Rd3 {[%clk 0:00:15.8]} 35... Rd7 {[%clk 0:01:19.4]} 36. Kf4 {[%clk
0:00:12.8]} 36... e5+ {[%clk 0:01:17.9]} 37. Ke4 {[%clk 0:00:13.1]} 37... Ke6
{[%clk 0:01:18.6]} 38. Rd5 {[%clk 0:00:13.3]} 38... Rxd6 {[%clk 0:01:14.5]} 39.
Rxc5 {[%clk 0:00:13.5]} 39... f5+ {[%clk 0:01:04.4]} 40. Ke3 {[%clk 0:00:12.7]}
40... e4 {[%clk 0:01:05.1]} 41. Ra5 {[%clk 0:00:12.3]} 41... Rc6 {[%clk
0:01:02.5]} 42. Kd4 {[%clk 0:00:11.2]} 42... Kd6 {[%clk 0:00:56.8]} 43. Rd5+
{[%clk 0:00:10.1]} 43... Ke6 {[%clk 0:00:57.3]} 44. Ra5 {[%clk 0:00:10.1]} 44...
Rd6+ {[%clk 0:00:54.1]} 45. Ke3 {[%clk 0:00:10]} 45... Rd3+ {[%clk 0:00:52.1]}
46. Kf2 {[%clk 0:00:10]} 46... Rc3 {[%clk 0:00:47.1]} 47. Rxa6+ {[%clk
0:00:09.5]} 47... Ke5 {[%clk 0:00:47.5]} 48. Rxg6 {[%clk 0:00:08.9]} 48... Rxc4
{[%clk 0:00:44.3]} 49. a5 {[%clk 0:00:09.2]} 49... Rc2+ {[%clk 0:00:42.6]} 50.
Ke3 {[%clk 0:00:07.5]} 50... Rc3+ {[%clk 0:00:42.1]} 51. Kf2 {[%clk 0:00:07.6]}
51... Rf3+ {[%clk 0:00:40.6]} 52. Kg2 {[%clk 0:00:07.7]} 52... Ra3 {[%clk
0:00:40.3]} 53. a6 {[%clk 0:00:08]} 53... Ra2+ {[%clk 0:00:32.4]} 54. Kh3 {[%clk
0:00:07.7]} 54... e3 {[%clk 0:00:32.3]} 55. Rg8 {[%clk 0:00:07.7]} 55... Ke4
{[%clk 0:00:31.7]} 56. Re8+ {[%clk 0:00:07.4]} 56... Kf3 {[%clk 0:00:32]} 57.
Re5 {[%clk 0:00:07.6]} 57... f4 {[%clk 0:00:31.7]} 58. Rf5 {[%clk 0:00:07.6]}
58... e2 {[%clk 0:00:29.1]} 59. Rxf4+ {[%clk 0:00:08]} 59... Ke3 {[%clk
0:00:29.6]} 60. Rf8 {[%clk 0:00:07.3]} 60... e1=Q {[%clk 0:00:29.9]} 61. Re8+
{[%clk 0:00:07.9]} 61... Kf2 {[%clk 0:00:30.3]} 62. Rxe1 {[%clk 0:00:08.8]}
62... Kxe1 {[%clk 0:00:31.1]} 63. g4 {[%clk 0:00:09.4]} 63... Ra3+ {[%clk
0:00:31.3]} 64. Kg2 {[%clk 0:00:09.7]} 64... hxg4 {[%clk 0:00:31.7]} 65. h5
{[%clk 0:00:10.2]} 65... Rxa6 {[%clk 0:00:28.8]} 66. Kg3 {[%clk 0:00:10.4]}
66... Ra4 {[%clk 0:00:26.6]} 67. h6 {[%clk 0:00:10.1]} 67... Ke2 {[%clk
0:00:20.4]} 68. h7 {[%clk 0:00:08.8]} 68... Ra8 {[%clk 0:00:20.3]} 69. Kxg4
{[%clk 0:00:09.5]} 69... Rh8 {[%clk 0:00:21]} 70. Kg5 {[%clk 0:00:10.1]} 70...
Rxh7 {[%clk 0:00:21.9]} 0-1

[Event "Early-Titled-Tuesday-Blitz-February-06-2024"]
[Site "Chess.com"]
[Date "2024.02.06"]
[Round "2"]
[White "Pingah9"]
[Black "Maitreia"]
[Result "0-1"]
[WhiteElo "2533"]
[BlackElo "2742"]
[TimeControl "180+1"]
[EndTime "8:18:42 PST"]
[Termination "Maitreia won on time"]

1. e4 {[%clk 0:03:00.9]} 1... c5 {[%clk 0:02:59.5]} 2. Nc3 {[%clk 0:03:00.5]}
2... g6 {[%clk 0:02:59.2]} 3. g3 {[%clk 0:03:00.3]} 3... Bg7 {[%clk 0:02:59.2]}
4. Bg2 {[%clk 0:03:00.7]} 4... Nc6 {[%clk 0:03:00]} 5. d3 {[%clk 0:03:01]} 5...
Nf6 {[%clk 0:03:00.5]} 6. Be3 {[%clk 0:03:00.4]} 6... d6 {[%clk 0:03:00.5]} 7.
h3 {[%clk 0:03:00.2]} 7... O-O {[%clk 0:03:00.2]} 8. Qd2 {[%clk 0:03:00.3]} 8...
Rb8 {[%clk 0:03:00.8]} 9. a4 {[%clk 0:02:59.4]} 9... a6 {[%clk 0:03:01.1]} 10.
Nge2 {[%clk 0:02:57.9]} 10... b5 {[%clk 0:03:01.4]} 11. axb5 {[%clk 0:02:58.1]}
11... axb5 {[%clk 0:03:02.3]} 12. Bh6 {[%clk 0:02:52.2]} 12... b4 {[%clk
0:03:02.3]} 13. Nd1 {[%clk 0:02:52.2]} 13... Bb7 {[%clk 0:02:59.3]} 14. O-O
{[%clk 0:02:50.2]} 14... Ra8 {[%clk 0:02:59]} 15. Bxg7 {[%clk 0:02:37.3]} 15...
Rxa1 {[%clk 0:02:51.7]} 16. Bxf8 {[%clk 0:02:31.6]} 16... Qxf8 {[%clk
0:02:52.6]} 17. Ne3 {[%clk 0:02:26.2]} 17... Qa8 {[%clk 0:02:49.9]} 18. c3
{[%clk 0:01:54.4]} 18... Rxf1+ {[%clk 0:02:44.4]} 19. Bxf1 {[%clk 0:01:51]}
19... Qa1 {[%clk 0:02:37.4]} 20. Kh2 {[%clk 0:01:45.3]} 20... Qb1 {[%clk
0:02:27.5]} 21. f4 {[%clk 0:01:31.7]} 21... bxc3 {[%clk 0:02:23.8]} 22. bxc3
{[%clk 0:01:25.8]} 22... Ba6 {[%clk 0:02:21.5]} 23. c4 {[%clk 0:01:03.5]} 23...
Bb7 {[%clk 0:02:18.5]} 24. Bg2 {[%clk 0:01:02.5]} 24... Nd7 {[%clk 0:02:06.9]}
25. h4 {[%clk 0:00:57.1]} 25... Nb4 {[%clk 0:02:05.3]} 26. Nc1 {[%clk
0:00:46.6]} 26... h5 {[%clk 0:01:58.7]} 27. g4 {[%clk 0:00:44.7]} 27... Nf6
{[%clk 0:01:55.5]} 28. g5 {[%clk 0:00:40.4]} 28... Ne8 {[%clk 0:01:46.3]} 29. f5
{[%clk 0:00:40.3]} 29... Nc7 {[%clk 0:01:37.3]} 30. fxg6 {[%clk 0:00:39.9]}
30... fxg6 {[%clk 0:01:37.4]} 31. Bh3 {[%clk 0:00:40.4]} 31... Qa1 {[%clk
0:01:24]} 32. Ne2 {[%clk 0:00:37.3]} 32... Qe5+ {[%clk 0:01:21]} 33. Kg2 {[%clk
0:00:34.1]} 33... Bxe4+ {[%clk 0:01:17.4]} 34. dxe4 {[%clk 0:00:31.7]} 34...
Qxe4+ {[%clk 0:01:18.3]} 35. Kh2 {[%clk 0:00:30.4]} 35... Nd3 {[%clk 0:01:17.6]}
36. Ng3 {[%clk 0:00:28.9]} 36... Qd4 {[%clk 0:01:12]} 37. Nd5 {[%clk 0:00:24.5]}
37... Nxd5 {[%clk 0:01:06.3]} 38. Be6+ {[%clk 0:00:24.7]} 38... Kg7 {[%clk
0:01:04]} 39. Bxd5 {[%clk 0:00:25.6]} 39... Qxh4+ {[%clk 0:01:02.2]} 40. Kg2
{[%clk 0:00:23.7]} 40... Nf4+ {[%clk 0:01:00.6]} 41. Kf3 {[%clk 0:00:24.1]}
41... Qg4+ {[%clk 0:01:00.9]} 42. Kf2 {[%clk 0:00:23.2]} 42... Nh3+ {[%clk
0:00:57.3]} 43. Kg2 {[%clk 0:00:22.9]} 43... Nxg5 {[%clk 0:00:57.8]} 44. Qc3+
{[%clk 0:00:22.1]} 44... Kh7 {[%clk 0:00:57]} 45. Qe3 {[%clk 0:00:21.4]} 45...
e5 {[%clk 0:00:51.8]} 46. Qb3 {[%clk 0:00:13.7]} 46... h4 {[%clk 0:00:51.2]} 47.
Qb7+ {[%clk 0:00:12.7]} 47... Kh6 {[%clk 0:00:51.4]} 48. Qb8 {[%clk 0:00:09.4]}
48... Qxg3+ {[%clk 0:00:52.3]} 49. Kf1 {[%clk 0:00:09.3]} 49... Qf4+ {[%clk
0:00:45]} 50. Ke2 {[%clk 0:00:09.2]} 50... e4 {[%clk 0:00:42.3]} 51. Qh8+ {[%clk
0:00:07.6]} 51... Nh7 {[%clk 0:00:42.6]} 52. Bg8 {[%clk 0:00:05.7]} 52... Qf3+
{[%clk 0:00:38.9]} 53. Ke1 {[%clk 0:00:06.3]} 53... Qe3+ {[%clk 0:00:39]} 54.
Kf1 {[%clk 0:00:06.3]} 54... Qf4+ {[%clk 0:00:37.5]} 55. Ke1 {[%clk 0:00:06.8]}
55... Qc1+ {[%clk 0:00:36]} 56. Ke2 {[%clk 0:00:07.1]} 56... Qc2+ {[%clk
0:00:35.6]} 57. Ke3 {[%clk 0:00:07.8]} 57... Qd3+ {[%clk 0:00:35.9]} 58. Kf2
{[%clk 0:00:07.8]} 58... e3+ {[%clk 0:00:33.2]} 59. Kg1 {[%clk 0:00:07.7]} 59...
Qd1+ {[%clk 0:00:31.7]} 60. Kg2 {[%clk 0:00:07.6]} 60... Qg4+ {[%clk 0:00:31.4]}
61. Kh2 {[%clk 0:00:07.7]} 61... Qf4+ {[%clk 0:00:30]} 62. Kh1 {[%clk
0:00:07.5]} 62... Qe4+ {[%clk 0:00:23.3]} 63. Kh2 {[%clk 0:00:07.2]} 63... e2
{[%clk 0:00:20.6]} 64. Qxh7+ {[%clk 0:00:06.7]} 64... Kg5 {[%clk 0:00:20.4]} 65.
Bd5 {[%clk 0:00:04.2]} 65... Qe5+ {[%clk 0:00:18.8]} 66. Kh3 {[%clk 0:00:04.3]}
66... e1=Q {[%clk 0:00:17.1]} 0-1

[Event "Early-Titled-Tuesday-Blitz-February-06-2024"]
[Site "Chess.com"]
[Date "2024.02.06"]
[Round "2"]
[White "hakanazeri2"]
[Black "amintabatabaei"]
[Result "1-0"]
[WhiteElo "2648"]
[BlackElo "2946"]
[TimeControl "180+1"]
[EndTime "8:18:44 PST"]
[Termination "hakanazeri2 won by resignation"]

1. Nf3 {[%clk 0:03:00.9]} 1... Nf6 {[%clk 0:02:58.7]} 2. c4 {[%clk 0:03:01.1]}
2... b6 {[%clk 0:02:58.9]} 3. g3 {[%clk 0:03:00.6]} 3... Bb7 {[%clk 0:02:58.6]}
4. Bg2 {[%clk 0:03:01.2]} 4... g6 {[%clk 0:02:54.2]} 5. O-O {[%clk 0:03:00.3]}
5... Bg7 {[%clk 0:02:53.5]} 6. Nc3 {[%clk 0:03:00.4]} 6... O-O {[%clk
0:02:51.9]} 7. Re1 {[%clk 0:03:00.3]} 7... c5 {[%clk 0:02:49.2]} 8. e4 {[%clk
0:02:59.9]} 8... d6 {[%clk 0:02:48.5]} 9. d4 {[%clk 0:02:59.4]} 9... cxd4 {[%clk
0:02:46.8]} 10. Nxd4 {[%clk 0:02:59]} 10... Qc8 {[%clk 0:02:43]} 11. b3 {[%clk
0:02:56.3]} 11... Nc6 {[%clk 0:02:41.2]} 12. Nxc6 {[%clk 0:02:51]} 12... Bxc6
{[%clk 0:02:42.1]} 13. Bb2 {[%clk 0:02:50.1]} 13... Qb7 {[%clk 0:02:32.7]} 14.
Nd5 {[%clk 0:02:39.6]} 14... Bxd5 {[%clk 0:02:23.7]} 15. exd5 {[%clk 0:02:38.5]}
15... Rfe8 {[%clk 0:02:23.9]} 16. a4 {[%clk 0:02:34.8]} 16... a6 {[%clk
0:02:23.5]} 17. Qd3 {[%clk 0:02:19]} 17... Rab8 {[%clk 0:02:24]} 18. Bd4 {[%clk
0:02:17.3]} 18... Nd7 {[%clk 0:02:16.8]} 19. Bxg7 {[%clk 0:02:15.3]} 19... Kxg7
{[%clk 0:02:17.7]} 20. Qd4+ {[%clk 0:02:14.5]} 20... Kg8 {[%clk 0:02:16.5]} 21.
Re3 {[%clk 0:02:11.3]} 21... b5 {[%clk 0:01:56.8]} 22. axb5 {[%clk 0:01:47.3]}
22... axb5 {[%clk 0:01:57.7]} 23. Ra7 {[%clk 0:01:47.5]} 23... Qb6 {[%clk
0:01:33.9]} 24. Qxb6 {[%clk 0:01:44.1]} 24... Nxb6 {[%clk 0:01:34.8]} 25. cxb5
{[%clk 0:01:22.7]} 25... Nc8 {[%clk 0:01:35.3]} 26. Rc7 {[%clk 0:01:04.3]} 26...
Rxb5 {[%clk 0:01:30.2]} 27. Bh3 {[%clk 0:01:03.5]} 27... Nb6 {[%clk 0:01:25.9]}
28. Rb7 {[%clk 0:01:03.4]} 28... Rb4 {[%clk 0:00:59]} 29. Bd7 {[%clk 0:00:56.8]}
29... Rd8 {[%clk 0:00:20.4]} 30. Bc6 {[%clk 0:00:40]} 30... Kg7 {[%clk
0:00:14.1]} 31. Rexe7 {[%clk 0:00:36.3]} 31... Rf8 {[%clk 0:00:14.5]} 32. Re3
{[%clk 0:00:14.2]} 32... Ra8 {[%clk 0:00:14.6]} 33. Kg2 {[%clk 0:00:11.8]} 33...
Rd8 {[%clk 0:00:14.9]} 34. Rf3 {[%clk 0:00:11.5]} 34... Rf8 {[%clk 0:00:14.9]}
35. Rf4 {[%clk 0:00:09.1]} 35... Rxf4 {[%clk 0:00:11.3]} 36. gxf4 {[%clk
0:00:09.3]} 36... Nc8 {[%clk 0:00:12.2]} 37. b4 {[%clk 0:00:09.3]} 37... Kf6
{[%clk 0:00:12.9]} 38. b5 {[%clk 0:00:09.6]} 38... Ne7 {[%clk 0:00:13.7]} 39.
Rd7 {[%clk 0:00:09.1]} 39... Rb8 {[%clk 0:00:04.3]} 40. Rxd6+ {[%clk 0:00:08.9]}
40... Kf5 {[%clk 0:00:05]} 41. Rd7 {[%clk 0:00:09.3]} 41... Kf6 {[%clk
0:00:04.9]} 42. d6 {[%clk 0:00:08.7]} 42... Nf5 {[%clk 0:00:05.4]} 43. Bd5
{[%clk 0:00:08.2]} 43... g5 {[%clk 0:00:03.3]} 44. Rxf7+ {[%clk 0:00:07.5]}
44... Kg6 {[%clk 0:00:03.8]} 45. Rb7 {[%clk 0:00:07]} 45... Rxb7 {[%clk
0:00:03]} 46. Bxb7 {[%clk 0:00:07.9]} 46... Nxd6 {[%clk 0:00:03.9]} 47. Bc6
{[%clk 0:00:04.9]} 47... Nc4 {[%clk 0:00:02.4]} 48. fxg5 {[%clk 0:00:04.4]}
48... Kxg5 {[%clk 0:00:03.3]} 49. Kf3 {[%clk 0:00:05]} 49... Kf5 {[%clk
0:00:03.8]} 50. Be4+ {[%clk 0:00:05.3]} 50... Ke5 {[%clk 0:00:04.1]} 51. Bxh7
{[%clk 0:00:06]} 51... Nd6 {[%clk 0:00:04.6]} 52. Bd3 {[%clk 0:00:06.1]} 52...
Kd4 {[%clk 0:00:05]} 53. Ke2 {[%clk 0:00:06.4]} 53... Nb7 {[%clk 0:00:04.8]} 54.
h4 {[%clk 0:00:06.6]} 54... Nc5 {[%clk 0:00:05.6]} 55. b6 {[%clk 0:00:06.8]}
55... Kd5 {[%clk 0:00:02.7]} 56. h5 {[%clk 0:00:06.8]} 56... Kc6 {[%clk
0:00:02]} 57. h6 {[%clk 0:00:07.2]} 57... Ne6 {[%clk 0:00:02.7]} 58. h7 {[%clk
0:00:07.7]} 1-0

[Event "Early-Titled-Tuesday-Blitz-February-06-2024"]
[Site "Chess.com"]
[Date "2024.02.06"]
[Round "2"]
[White "frequentblunders"]
[Black "NovakRatko"]
[Result "1-0"]
[WhiteElo "2190"]
[BlackElo "2426"]
[TimeControl "180+1"]
[EndTime "8:18:46 PST"]
[Termination "frequentblunders won by resignation"]

1. d3 {[%clk 0:03:00.3]} 1... d5 {[%clk 0:02:56.1]} 2. f4 {[%clk 0:03:00]} 2...
c5 {[%clk 0:02:56]} 3. Nf3 {[%clk 0:03:00.9]} 3... Nc6 {[%clk 0:02:56.2]} 4. g3
{[%clk 0:03:01.8]} 4... f6 {[%clk 0:02:56.6]} 5. Bg2 {[%clk 0:03:02.7]} 5... e5
{[%clk 0:02:57.3]} 6. O-O {[%clk 0:03:03.6]} 6... Bd6 {[%clk 0:02:57.6]} 7. e4
{[%clk 0:03:04.3]} 7... d4 {[%clk 0:02:53.7]} 8. f5 {[%clk 0:03:03.8]} 8... g6
{[%clk 0:02:53.5]} 9. g4 {[%clk 0:03:03.7]} 9... h5 {[%clk 0:02:49.3]} 10. h3
{[%clk 0:03:02.1]} 10... hxg4 {[%clk 0:02:47.1]} 11. hxg4 {[%clk 0:03:03]} 11...
gxf5 {[%clk 0:02:47.4]} 12. gxf5 {[%clk 0:03:02.8]} 12... Nge7 {[%clk
0:02:46.7]} 13. a4 {[%clk 0:03:01.8]} 13... Rg8 {[%clk 0:02:31.7]} 14. Na3
{[%clk 0:03:00.1]} 14... Nxf5 {[%clk 0:02:30.4]} 15. exf5 {[%clk 0:02:59.8]}
15... Bxf5 {[%clk 0:02:30.9]} 16. Nh4 {[%clk 0:02:47.7]} 16... Bg4 {[%clk
0:02:25.3]} 17. Qe1 {[%clk 0:02:33.4]} 17... f5 {[%clk 0:02:13]} 18. Nc4 {[%clk
0:02:15.1]} 18... f4 {[%clk 0:01:59.9]} 19. Bxf4 {[%clk 0:01:51.5]} 19... Qd7
{[%clk 0:01:36.5]} 20. Bxe5 {[%clk 0:01:07.1]} 20... Bxe5 {[%clk 0:01:22.8]} 21.
Nxe5 {[%clk 0:01:08]} 21... Nxe5 {[%clk 0:01:17.2]} 22. Qxe5+ {[%clk 0:01:08.9]}
22... Kd8 {[%clk 0:01:17.3]} 23. Rae1 {[%clk 0:00:50.3]} 23... Bh3 {[%clk
0:01:16]} 24. Qf6+ {[%clk 0:00:36.9]} 24... Kc8 {[%clk 0:01:09.1]} 25. Re7
{[%clk 0:00:23.6]} 25... Qd8 {[%clk 0:00:33.4]} 26. Kh2 {[%clk 0:00:14]} 26...
Bxg2 {[%clk 0:00:32.5]} 27. Nxg2 {[%clk 0:00:14.9]} 27... a6 {[%clk 0:00:29.6]}
28. Qe6+ {[%clk 0:00:14]} 28... Kb8 {[%clk 0:00:29]} 29. Rff7 {[%clk 0:00:13.8]}
29... Ra7 {[%clk 0:00:21.7]} 30. Qe5+ {[%clk 0:00:12.9]} 30... Ka8 {[%clk
0:00:20.9]} 31. Nf4 {[%clk 0:00:11.8]} 31... Qc8 {[%clk 0:00:11.2]} 32. Qe6
{[%clk 0:00:09.2]} 32... Qb8 {[%clk 0:00:10.5]} 33. Qe5 {[%clk 0:00:08.9]} 33...
Qc8 {[%clk 0:00:09.6]} 34. Nd5 {[%clk 0:00:07.2]} 34... Rh8+ {[%clk 0:00:08.6]}
35. Rh7 {[%clk 0:00:07.4]} 35... Rxh7+ {[%clk 0:00:08.3]} 36. Rxh7 {[%clk
0:00:08.3]} 36... Qd8 {[%clk 0:00:07]} 37. Nc7+ {[%clk 0:00:07.8]} 37... Kb8
{[%clk 0:00:06.9]} 38. Nxa6+ {[%clk 0:00:07.9]} 38... Ka8 {[%clk 0:00:07.3]} 39.
Nc7+ {[%clk 0:00:08.1]} 39... Kb8 {[%clk 0:00:07.7]} 40. Nb5+ {[%clk 0:00:08.4]}
40... Ka8 {[%clk 0:00:07.9]} 41. Nxa7 {[%clk 0:00:08.8]} 41... Kxa7 {[%clk
0:00:08.8]} 42. Qxc5+ {[%clk 0:00:07.8]} 42... Kb8 {[%clk 0:00:08.6]} 43. Qe5+
{[%clk 0:00:07.8]} 43... Ka8 {[%clk 0:00:08.9]} 44. Qe7 {[%clk 0:00:08.1]} 44...
Qb8+ {[%clk 0:00:08.9]} 45. Qc7 {[%clk 0:00:07.4]} 45... Ka7 {[%clk 0:00:09.7]}
46. Qxb8+ {[%clk 0:00:07.2]} 46... Kxb8 {[%clk 0:00:10.6]} 47. Rd7 {[%clk
0:00:07.1]} 47... Ka7 {[%clk 0:00:10.4]} 48. Rxd4 {[%clk 0:00:08]} 48... Kb6
{[%clk 0:00:11.3]} 49. c3 {[%clk 0:00:08.4]} 49... Kc5 {[%clk 0:00:11.6]} 50.
Rb4 {[%clk 0:00:09.3]} 50... b6 {[%clk 0:00:11.7]} 51. Rb5+ {[%clk 0:00:09.1]}
51... Kc6 {[%clk 0:00:11.9]} 52. Kg3 {[%clk 0:00:09.4]} 52... Kc7 {[%clk
0:00:12.5]} 53. Kf3 {[%clk 0:00:10.3]} 53... Kc6 {[%clk 0:00:13.4]} 54. Ke4
{[%clk 0:00:11.1]} 54... Kc7 {[%clk 0:00:14.2]} 55. c4 {[%clk 0:00:11.3]} 55...
Kb7 {[%clk 0:00:14.7]} 56. d4 {[%clk 0:00:12.2]} 56... Ka7 {[%clk 0:00:15.1]}
57. Ke5 {[%clk 0:00:12.5]} 57... Ka6 {[%clk 0:00:15.7]} 58. Kd6 {[%clk
0:00:12.7]} 58... Kb7 {[%clk 0:00:16.1]} 59. b4 {[%clk 0:00:13.6]} 59... Ka8
{[%clk 0:00:16.4]} 60. Rh5 {[%clk 0:00:13.5]} 60... Ka7 {[%clk 0:00:16.5]} 61.
b5 {[%clk 0:00:14.1]} 61... Kb7 {[%clk 0:00:16.5]} 62. Rh7+ {[%clk 0:00:14.4]}
62... Kc8 {[%clk 0:00:17]} 63. Kc6 {[%clk 0:00:15.3]} 63... Kd8 {[%clk 0:00:17]}
64. Kxb6 {[%clk 0:00:16.1]} 64... Ke8 {[%clk 0:00:17.2]} 65. a5 {[%clk 0:00:17]}
65... Kd8 {[%clk 0:00:17.7]} 66. a6 {[%clk 0:00:17.9]} 66... Kc8 {[%clk
0:00:17.5]} 67. a7 {[%clk 0:00:18.2]} 1-0

[Event "Early-Titled-Tuesday-Blitz-February-06-2024"]
[Site "Chess.com"]
[Date "2024.02.06"]
[Round "2"]
[White "rasmussvane"]
[Black "viktorskliarov"]
[Result "1-0"]
[WhiteElo "2958"]
[BlackElo "2631"]
[TimeControl "180+1"]
[EndTime "8:18:48 PST"]
[Termination "rasmussvane won by resignation"]

1. Nf3 {[%clk 0:02:49.1]} 1... g6 {[%clk 0:02:59.9]} 2. e4 {[%clk 0:02:48.7]}
2... c5 {[%clk 0:02:59.4]} 3. c4 {[%clk 0:02:40.6]} 3... Nc6 {[%clk 0:02:59]} 4.
d4 {[%clk 0:02:39.8]} 4... cxd4 {[%clk 0:02:59.9]} 5. Nxd4 {[%clk 0:02:40.5]}
5... Bg7 {[%clk 0:03:00.6]} 6. Be3 {[%clk 0:02:38.2]} 6... Nf6 {[%clk
0:03:01.2]} 7. Nc3 {[%clk 0:02:36.7]} 7... Ng4 {[%clk 0:03:01.5]} 8. Qxg4 {[%clk
0:02:36.7]} 8... Nxd4 {[%clk 0:03:02]} 9. Qd1 {[%clk 0:02:37]} 9... Ne6 {[%clk
0:03:02.3]} 10. Rc1 {[%clk 0:02:37.1]} 10... d6 {[%clk 0:03:00.7]} 11. Be2
{[%clk 0:02:34]} 11... b6 {[%clk 0:03:00.4]} 12. O-O {[%clk 0:02:29.8]} 12...
Bb7 {[%clk 0:03:00.1]} 13. Qd2 {[%clk 0:02:23.7]} 13... O-O {[%clk 0:02:59.1]}
14. f3 {[%clk 0:02:21.3]} 14... Rc8 {[%clk 0:02:56.1]} 15. Rfd1 {[%clk
0:02:20.6]} 15... f5 {[%clk 0:02:48.1]} 16. exf5 {[%clk 0:02:18.5]} 16... gxf5
{[%clk 0:02:45.8]} 17. f4 {[%clk 0:02:08.2]} 17... Nc5 {[%clk 0:02:32.8]} 18.
Rf1 {[%clk 0:01:41.5]} 18... e5 {[%clk 0:01:22]} 19. Rcd1 {[%clk 0:01:36.8]}
19... Ne4 {[%clk 0:01:08.3]} 20. Nxe4 {[%clk 0:01:36]} 20... Bxe4 {[%clk
0:01:07.6]} 21. b3 {[%clk 0:01:14]} 21... d5 {[%clk 0:00:50.2]} 22. fxe5 {[%clk
0:00:57.4]} 22... Bxe5 {[%clk 0:00:49.2]} 23. Bd4 {[%clk 0:00:53.9]} 23... Bxd4+
{[%clk 0:00:40.3]} 24. Qxd4 {[%clk 0:00:53.7]} 24... Qg5 {[%clk 0:00:41]} 25.
Bf3 {[%clk 0:00:51]} 25... dxc4 {[%clk 0:00:33]} 26. Bxe4 {[%clk 0:00:49.9]}
26... fxe4 {[%clk 0:00:32.7]} 27. Rxf8+ {[%clk 0:00:49.9]} 27... Rxf8 {[%clk
0:00:18.3]} 28. Qxc4+ {[%clk 0:00:50.2]} 28... Kh8 {[%clk 0:00:18.3]} 29. Qxe4
{[%clk 0:00:47.5]} 29... Qc5+ {[%clk 0:00:18.2]} 30. Qd4+ {[%clk 0:00:25.8]}
30... Qxd4+ {[%clk 0:00:18]} 31. Rxd4 {[%clk 0:00:26.7]} 31... Rf7 {[%clk
0:00:17.6]} 32. g3 {[%clk 0:00:23.9]} 32... Kg7 {[%clk 0:00:16.6]} 33. Kg2
{[%clk 0:00:24.4]} 33... Kg6 {[%clk 0:00:11.6]} 34. Rg4+ {[%clk 0:00:20.8]}
34... Kh6 {[%clk 0:00:08.5]} 35. Rf4 {[%clk 0:00:19.8]} 35... Rc7 {[%clk
0:00:08.2]} 36. Rf2 {[%clk 0:00:20.2]} 36... Kg6 {[%clk 0:00:07.7]} 37. h4
{[%clk 0:00:20.5]} 37... h5 {[%clk 0:00:07.4]} 38. Kh3 {[%clk 0:00:20.8]} 38...
Rc3 {[%clk 0:00:07.4]} 39. Rd2 {[%clk 0:00:20.9]} 39... Rc7 {[%clk 0:00:02.9]}
40. Rd6+ {[%clk 0:00:20.8]} 40... Kg7 {[%clk 0:00:03.3]} 41. b4 {[%clk
0:00:15.9]} 41... Kh7 {[%clk 0:00:03.3]} 42. a3 {[%clk 0:00:14.8]} 42... Kg7
{[%clk 0:00:03.5]} 43. b5 {[%clk 0:00:13.4]} 43... Kh7 {[%clk 0:00:03.9]} 44. a4
{[%clk 0:00:13.9]} 44... Kg7 {[%clk 0:00:04.1]} 45. Rc6 {[%clk 0:00:14]} 45...
Rd7 {[%clk 0:00:04.1]} 46. Kg2 {[%clk 0:00:13.8]} 46... Rf7 {[%clk 0:00:04.3]}
47. Re6 {[%clk 0:00:13.8]} 47... Kh7 {[%clk 0:00:04.6]} 48. Re4 {[%clk
0:00:13.6]} 48... Kg6 {[%clk 0:00:04.7]} 49. Rf4 {[%clk 0:00:14.1]} 49... Rc7
{[%clk 0:00:04.6]} 50. Re4 {[%clk 0:00:14.4]} 50... Rd7 {[%clk 0:00:03.5]} 51.
Kf3 {[%clk 0:00:14.3]} 51... Kf6 {[%clk 0:00:04]} 52. Kf4 {[%clk 0:00:14.7]}
52... Kg6 {[%clk 0:00:02.6]} 53. Rc4 {[%clk 0:00:14.9]} 53... Rf7+ {[%clk
0:00:02.4]} 54. Ke5 {[%clk 0:00:14.9]} 54... Rf3 {[%clk 0:00:02.7]} 55. Rc6+
{[%clk 0:00:13.5]} 55... Kg7 {[%clk 0:00:02.9]} 56. Rc7+ {[%clk 0:00:14]} 56...
Kg6 {[%clk 0:00:03.6]} 57. Rxa7 {[%clk 0:00:14.2]} 57... Rxg3 {[%clk 0:00:04.2]}
58. Ra6 {[%clk 0:00:14.5]} 58... Rg4 {[%clk 0:00:03.9]} 59. Rxb6+ {[%clk
0:00:14.9]} 59... Kg7 {[%clk 0:00:04.5]} 60. a5 {[%clk 0:00:15.5]} 60... Rxh4
{[%clk 0:00:05.1]} 61. a6 {[%clk 0:00:16]} 61... Ra4 {[%clk 0:00:05.9]} 62. Rb7+
{[%clk 0:00:16.6]} 62... Kg6 {[%clk 0:00:06.5]} 63. a7 {[%clk 0:00:17.3]} 63...
h4 {[%clk 0:00:07.1]} 64. b6 {[%clk 0:00:18]} 64... h3 {[%clk 0:00:07.2]} 65.
Rb8 {[%clk 0:00:14.9]} 65... h2 {[%clk 0:00:07]} 66. Rh8 {[%clk 0:00:15.1]}
66... Ra2 {[%clk 0:00:07.1]} 67. b7 {[%clk 0:00:13.1]} 67... Ra5+ {[%clk
0:00:06.7]} 68. Kd4 {[%clk 0:00:12.8]} 68... Rxa7 {[%clk 0:00:07.1]} 69. b8=Q
{[%clk 0:00:12.8]} 69... Rh7 {[%clk 0:00:07.3]} 70. Rxh7 {[%clk 0:00:12.6]}
70... Kxh7 {[%clk 0:00:07.4]} 71. Qxh2+ {[%clk 0:00:12.7]} 1-0